[Event "DPEM German Cup 2024"]
[Site "Bad Wildungen"]
[Date "2024.08.03"]
[Round "5.5"]
[White "Foerch, Benedikt"]
[Black "Wickenfeld, Stefan"]
[Result "1/2-1/2"]
[Annotator "ChessBase"]
[ECO "D11"]
[WhiteElo "2102"]
[BlackElo "2198"]
[PlyCount "86"]
[EventDate "2024.07.31"]
[EventCountry "GER"]
[SourceTitle "playchess.com"]
[Source "ChessBase"]
[SourceQuality "1"]
[TimeControl "40/5400+30:900+30"]

1. Nf3 {[%emt 0:02:55]} Nf6 {[%emt 0:00:08]} 2. g3 {[%emt 0:00:43]} d5 {[%emt 0:00:07]} 3. Bg2 {[%emt 0:00:04]} Bf5 {[%emt 0:00:07]} 4. O-O {[%emt 0:01:03]} e6 {[%emt 0:00:05]} 5. d4 {[%emt 0:00:08]} Be7 {[%emt 0:00:08]} 6. c4 {[%emt 0:00:12]} c6 {[%emt 0:00:07]} 7. Qb3 {[%emt 0:01:12]} Qb6 {[%emt 0:00:42]} 8. c5 {[%emt 0:00:41]} Qa6 {[%emt 0:01:39]} 9. Bf4 {[%emt 0:00:21]} b6 {[%emt 0:00:51]} 10. cxb6 {[%emt 0:00:07]} axb6 {[%emt 0:00:13]} 11. Rc1 {[%emt 0:02:10]} O-O {[%emt 0:00:56]} 12. Nc3 {[%emt 0:03:21]} c5 {[%emt 0:04:15]} 13. Qb5 {[%emt 0:01:27]} Ne4 {[%emt 0:00:52]} 14. Qxa6 {[%emt 0:00:16]} Rxa6 {[%emt 0:00:53]} 15. Nxe4 {[%emt 0:07:24]} Bxe4 {[%emt 0:00:11]} 16. Be3 {[%emt 0:03:20]} Nd7 {[%emt 0:01:08]} 17. Ne5 {[%emt 0:29:16]} Nxe5 {[%emt 0:06:48]} 18. Bxe4 {[%emt 0:02:06]} Ng4 {[%emt 0:00:38]} 19. Bd3 {[%emt 0:00:36]} c4 {[%emt 0:01:23]} 20. Bc2 {[%emt 0:02:26]} Nxe3 {[%emt 0:00:07]} 21. fxe3 {[%emt 0:00:02]} f5 {[%emt 0:00:46]} 22. a4 {[%emt 0:03:57]} Bb4 {[%emt 0:03:25]} 23. Rd1 {[%emt 0:01:12]} Rfa8 {[%emt 0:01:13]} 24. Rab1 {[%emt 0:02:05]} b5 {[%emt 0:03:04]} 25. axb5 {[%emt 0:00:02]} Ra2 {[%emt 0:00:08]} 26. Kf2 {[%emt 0:04:20]} R8a5 {[%emt 0:00:14]} 27. g4 {[%emt 0:00:46]} fxg4 {[%emt 0:01:42]} 28. e4 {[%emt 0:00:19]} Rxb5 {[%emt 0:01:36]} 29. exd5 {[%emt 0:00:12]} exd5 {[%emt 0:00:06]} 30. Bf5 {[%emt 0:02:20]} Bd6 {[%emt 0:02:15]} 31. Bxg4 {[%emt 0:00:12]} Bxh2 {[%emt 0:02:40]} 32. Be6+ {[%emt 0:03:00]} Kh8 {[%emt 0:01:15]} 33. e4 {[%emt 0:12:53]} Raxb2+ {[%emt 0:08:20]} 34. Rxb2 {[%emt 0:00:08]} Rxb2+ {[%emt 0:00:06]} 35. Kf3 {[%emt 0:05:39]} dxe4+ {[%emt 0:01:33]} 36. Kxe4 {[%emt 0:01:15]} Re2+ {[%emt 0:01:10]} 37. Kf5 {[%emt 0:02:24]} Rf2+ {[%emt 0:03:11]} 38. Ke4 {[%emt 0:00:44]} Rf4+ {[%emt 0:02:49]} 39. Ke3 {[%emt 0:03:06]} c3 {[%emt 0:00:17]} 40. Kd3 {[%emt 0:01:01]} Rf3+ {[%emt 0:02:35]} 41. Kc2 {[%emt 0:15:03]} Re3 {[%emt 0:16:48]} 42. Bc4 {[%emt 0:00:39]} Bd6 {[%emt 0:05:43]} 43. Bd3 {[%emt 0:00:37]} g6 {[%emt 0:00:07]} 1/2-1/2

[Event "DPEM German Cup 2024"]
[Site "Bad Wildungen"]
[Date "2024.08.03"]
[Round "5.7"]
[White "Namyslo, Holger"]
[Black "Willim, Michael"]
[Result "1/2-1/2"]
[Annotator "RC"]
[ECO "B12"]
[WhiteElo "2131"]
[BlackElo "2083"]
[PlyCount "24"]
[EventDate "2024.07.31"]
[EventCountry "GER"]
[SourceTitle "playchess.com"]
[Source "ChessBase"]
[SourceQuality "1"]
[TimeControl "40/5400+30:900+30"]

1. e4 {[%emt 0:00:04]} c6 {[%emt 0:00:11]} 2. d4 {[%emt 0:00:04]} d5 {[%emt 0:00:05]} 3. e5 {[%emt 0:00:14]} c5 {[%emt 0:00:07]} 4. dxc5 {[%emt 0:00:06]} e6 {[%emt 0:00:06]} 5. a3 {[%emt 0:00:30]} Bxc5 {[%emt 0:00:23]} 6. b4 {[%emt 0:03:08]} Be7 {[%emt 0:00:07]} 7. Bd3 {[%emt 0:00:21]} a5 {[%emt 0:05:07]} 8. Qg4 {[%emt 0:06:53]} g6 {[%emt 0:03:08]} 9. bxa5 {[%emt 0:01:52]} Qxa5+ {[%emt 0:06:35]} 10. Bd2 {[%emt 0:00:50]} Qc7 {[%emt 0:01:43]} 11. Nf3 {[%emt 0:02:23]} Nd7 {[%emt 0:02:02]} 12. O-O {[%emt 0:01:09]} Nc5 {[%emt 0:03:03]} 1/2-1/2

[Event "DPEM German Cup 2024"]
[Site "Bad Wildungen"]
[Date "2024.08.03"]
[Round "5.8"]
[White "Skabs, Denis"]
[Black "Junker, Reiner"]
[Result "1-0"]
[Annotator "ChessBase"]
[ECO "C00"]
[WhiteElo "2096"]
[BlackElo "2225"]
[PlyCount "43"]
[EventDate "2024.07.31"]
[EventCountry "GER"]
[SourceTitle "playchess.com"]
[Source "ChessBase"]
[SourceQuality "1"]
[TimeControl "40/5400+30:900+30"]

1. e4 {[%emt 0:01:52]} e6 {[%emt 0:00:15]} 2. d3 {[%emt 0:00:09]} d5 {[%emt 0:00:29]} 3. Qe2 {[%emt 0:00:06]} Be7 {[%emt 0:03:05]} 4. Nf3 {[%emt 0:00:05]} Nf6 {[%emt 0:01:00]} 5. g3 {[%emt 0:00:05]} c5 {[%emt 0:00:48]} 6. Bg2 {[%emt 0:00:04]} Nc6 {[%emt 0:00:46]} 7. O-O {[%emt 0:00:17]} b5 {[%emt 0:02:46]} 8. exd5 {[%emt 0:01:37]} exd5 {[%emt 0:10:05]} 9. d4 {[%emt 0:00:05]} c4 {[%emt 0:00:51]} 10. c3 {[%emt 0:02:07]} O-O {[%emt 0:00:37]} 11. Ne5 {[%emt 0:05:20]} Bb7 {[%emt 0:00:48]} 12. Bf4 {[%emt 0:05:30]} Re8 {[%emt 0:03:19]} 13. Qf3 {[%emt 0:01:44]} h6 {[%emt 0:05:53]} 14. h4 {[%emt 0:01:27]} Qc8 {[%emt 0:02:40]} 15. Nd2 {[%emt 0:05:31]} Qf5 {[%emt 0:03:23]} 16. Rfe1 {[%emt 0:04:46]} g5 {[%emt 0:28:36]} 17. hxg5 {[%emt 0:05:21]} hxg5 {[%emt 0:00:08]} 18. Nxc6 {[%emt 0:02:59]} Bxc6 {[%emt 0:00:08]} 19. Re5 {[%emt 0:00:40]} g4 {[%emt 0:03:13]} 20. Rxf5 {[%emt 0:17:32]} gxf3 {[%emt 0:00:09]} 21. Bxf3 {[%emt 0:00:12]} Red8 {[%emt 0:14:35]} 22. Re1 {[%emt 0:01:54]} 1-0